bitfinex-derivatives/quotes_BTCF0:USTF0_20240907
["timestamp","ask_amount","ask_price","bid_price","bid_amount"]
[1725701767087,0.06780473,54244.0,54243.0,0.092191]
[1725701767283,0.07080473,54244.0,54243.0,0.092191]
[1725701767803,0.06158115,54244.0,54243.0,0.092191]
[1725701768294,0.07080477,54244.0,54243.0,0.092191]
[1725701768594,0.07080477,54244.0,54243.0,0.23266565]
[1725701768595,0.01422362,54244.0,54243.0,0.23266565]
[1725701769198,0.02344718,54244.0,54243.0,0.23266565]
[1725701769989,0.02344718,54244.0,54243.0,0.33266577]
[1725701773199,0.01422362,54244.0,54243.0,0.33266577]
[1725701773407,0.02344713,54244.0,54243.0,0.33266577]
[1725701773992,0.01422362,54244.0,54243.0,0.33266577]
[1725701774392,0.02344714,54244.0,54243.0,0.33266577]
[1725701775197,0.02344714,54244.0,54243.0,0.33266514]
[1725701775497,0.02344714,54244.0,54243.0,0.192191]
[1725701776299,0.01422352,54244.0,54243.0,0.192191]
[1725701779903,0.005,54244.0,54243.0,0.192191]
[1725701780093,0.06956487,54244.0,54243.0,0.192191]
[1725701780604,0.07878839,54244.0,54243.0,0.192191]
[1725701782393,0.092148,54269.0,54243.0,0.192191]
[1725701782394,0.52803557,54260.0,54243.0,1.345271]
[1725701782595,0.01009152,54254.0,54249.0,0.192181]
[1725701782792,0.16455511,54250.0,54249.0,0.192181]
[1725701782994,0.1,54250.0,54249.0,0.192181]
[1725701783396,0.05389065,54250.0,54249.0,0.2326301]
[1725701783596,0.05389065,54250.0,54249.0,0.3326301]
[1725701783799,0.05589065,54250.0,54249.0,0.3438301]
[1725701784307,0.06519106,54250.0,54249.0,0.3438301]
[1725701784490,0.07319106,54250.0,54249.0,0.3448301]
[1725701784696,0.08219106,54250.0,54249.0,0.3458301]
[1725701785001,0.17437006,54250.0,54249.0,0.3458301]
[1725701785201,0.17437006,54250.0,54249.0,0.34583549]
[1725701785406,0.17437006,54250.0,54249.0,0.43791559]
[1725701785705,0.08219106,54250.0,54249.0,0.43791559]
[1725701786006,0.08219106,54250.0,54249.0,0.34583549]
[1725701786205,0.08219106,54250.0,54249.0,0.43791245]
[1725701786791,0.07289065,54250.0,54249.0,0.43791245]
[1725701787201,0.08206103,54250.0,54249.0,0.43791245]
[1725701787999,0.08206103,54250.0,54249.0,0.34583549]
[1725701789102,0.08206103,54250.0,54249.0,0.43787491]
[1725701790194,0.08206103,54250.0,54249.0,0.43787334]
[1725701790801,0.1719761,54250.0,54249.0,0.43787334]
[1725701791000,0.1719761,54250.0,54249.0,0.33412525]
[1725701791202,0.25624758,54250.0,54249.0,0.33412525]
[1725701791398,0.33681549,54250.0,54249.0,0.33412525]
[1725701791605,0.33681549,54250.0,54249.0,0.42630625]
[1725701791805,0.33681549,54250.0,54249.0,0.33426683]
[1725701792005,0.33681549,54250.0,54249.0,0.20746744]
[1725701792910,0.33681549,54250.0,54249.0,0.05761392]
[1725701793410,0.33681549,54250.0,54249.0,0.14962214]
[1725701793610,0.33681549,54250.0,54249.0,0.05761392]
[1725701794008,0.32759338,54250.0,54247.0,0.22073872]
[1725701794213,0.16496444,54249.0,54248.0,0.092183]
[1725701794609,0.17418609,54249.0,54248.0,0.092183]
[1725701795007,0.17418609,54249.0,54248.0,0.208683]
[1725701795208,0.26392438,54249.0,54248.0,0.208683]
[1725701795403,0.18323142,54249.0,54248.0,0.208683]
[1725701795803,0.10795994,54249.0,54248.0,0.209683]
[1725701796001,0.10795994,54249.0,54248.0,0.309683]
[1725701796414,0.10795994,54249.0,54248.0,0.401866]
[1725701797117,0.02622165,54249.0,54248.0,0.402866]
[1725701797417,0.02622165,54249.0,54248.0,0.456966]
[1725701800410,0.02622165,54249.0,54248.0,0.549149]
[1725701800610,0.02622165,54249.0,54248.0,0.456966]
[1725701801124,0.02622165,54249.0,54248.0,1.009966]
[1725701802019,0.03547898,54249.0,54248.0,1.009966]
[1725701802718,0.02647898,54249.0,54248.0,1.008966]
[1725701802915,0.02747898,54249.0,54248.0,1.021966]
[1725701803309,0.02047898,54249.0,54248.0,1.032966]
[1725701803616,0.02047898,54249.0,54248.0,1.125149]
[1725701803814,0.02047898,54249.0,54248.0,0.572149]
[1725701803815,0.01125733,54249.0,54248.0,0.572149]
[1725701804018,0.01947888,54249.0,54248.0,0.467966]
[1725701804319,0.02047888,54249.0,54248.0,0.571149]
[1725701804513,0.02047888,54249.0,54248.0,0.569149]
[1725701804917,0.05389065,54250.0,54249.0,0.276543]
[1725701805225,0.092163,54260.0,54259.0,0.092164]
[1725701805714,0.10129676,54260.0,54259.0,0.092164]
[1725701806016,0.10129676,54260.0,54259.0,0.16575547]
[1725701806614,0.092163,54260.0,54259.0,0.16575547]
[1725701807109,0.11280875,54260.0,54259.0,0.16575547]
[1725701807416,0.11280875,54260.0,54259.0,0.092164]
[1725701807626,0.11280875,54260.0,54259.0,0.16575547]
[1725701808325,0.21280875,54260.0,54259.0,0.16575547]
[1725701808722,0.21380875,54260.0,54259.0,0.16575547]
[1725701809115,0.10439743,54260.0,54259.0,0.26575547]
[1725701809427,0.1136483,54260.0,54259.0,0.26575547]
[1725701809726,0.11381982,54260.0,54259.0,0.26575547]
[1725701810420,0.11381982,54260.0,54259.0,0.192164]
[1725701813116,0.12304075,54260.0,54259.0,0.192164]
[1725701813519,0.17960544,54260.0,54259.0,0.192164]
[1725701813723,0.17038451,54260.0,54259.0,0.192164]
[1725701813926,0.17038451,54260.0,54259.0,0.092164]
[1725701814225,0.17960544,54260.0,54259.0,0.092164]
[1725701814427,0.32498219,54260.0,54259.0,0.092164]
[1725701814617,0.17960544,54260.0,54259.0,0.092164]
[1725701814920,0.17018305,54260.0,54259.0,0.092164]
[1725701815323,0.1793688,54260.0,54259.0,0.092164]
[1725701815626,0.17018305,54260.0,54259.0,0.092164]
[1725701816326,0.17919914,54260.0,54259.0,0.092164]
[1725701817427,0.16997821,54260.0,54259.0,0.092164]
[1725701817927,0.17919941,54260.0,54259.0,0.092164]
[1725701818228,0.1884206,54260.0,54259.0,0.092164]
[1725701819717,0.17919941,54260.0,54259.0,0.092164]
[1725701820733,0.12263472,54260.0,54259.0,0.092164]
[1725701822331,0.11361863,54260.0,54259.0,0.092164]
[1725701822826,0.12293673,54260.0,54259.0,0.092164]
[1725701823724,0.11371553,54260.0,54259.0,0.092164]
[1725701824525,0.12293674,54260.0,54259.0,0.092164]
[1725701825121,0.11371553,54260.0,54259.0,0.092164]
[1725701825624,0.12293681,54260.0,54259.0,0.092164]
[1725701825827,0.18748581,54260.0,54259.0,0.092164]
[1725701826034,0.17826453,54260.0,54259.0,0.092164]
[1725701826329,0.18748576,54260.0,54259.0,0.092164]
[1725701826827,0.17816766,54260.0,54259.0,0.092164]
[1725701827424,0.17811035,54260.0,54259.0,0.092164]
[1725701827631,0.18733146,54260.0,54259.0,0.092164]
[1725701828430,0.19655252,54260.0,54259.0,0.092164]
[1725701829023,0.17816749,54260.0,54259.0,0.092164]
[1725701829525,0.17816749,54260.0,54259.0,0.18415334]
[1725701829726,0.18729084,54260.0,54259.0,0.18415334]
[1725701830238,0.17816749,54260.0,54259.0,0.18415334]
[1725701830436,0.17816749,54260.0,54259.0,0.32458846]
[1725701830736,0.18750661,54260.0,54259.0,0.32458846]
[1725701831132,0.08600449,54260.0,54259.0,0.32458846]
[1725701831330,0.07678343,54260.0,54259.0,0.32458846]
[1725701831738,0.09507134,54260.0,54259.0,0.32458846]
[1725701832434,0.09507134,54260.0,54259.0,0.33259912]
[1725701834034,0.0950713,54260.0,54259.0,0.33259912]
[1725701834231,0.08585039,54260.0,54259.0,0.33259912]
[1725701834431,0.0950713,54260.0,54259.0,0.33259846]
[1725701835130,0.08585039,54260.0,54259.0,0.33259846]
[1725701835531,0.08585039,54260.0,54259.0,0.192164]
[1725701835532,0.14241491,54260.0,54259.0,0.192164]
[1725701836733,0.15163582,54260.0,54259.0,0.192164]
[1725701837131,0.14241491,54260.0,54259.0,0.192164]
[1725701837531,0.15163582,54260.0,54259.0,0.192164]
[1725701837737,0.14256886,54260.0,54259.0,0.192164]
[1725701838042,0.15165687,54260.0,54259.0,0.192164]
[1725701838340,0.14256886,54260.0,54259.0,0.192164]
[1725701838838,0.15181363,54260.0,54259.0,0.192164]
[1725701839540,0.14259272,54260.0,54259.0,0.192164]
[1725701839734,0.15181363,54260.0,54259.0,0.192164]
[1725701842030,0.07801986,54260.0,54259.0,0.192164]
[1725701842436,0.08709404,54260.0,54259.0,0.192164]
[1725701843235,0.07787313,54260.0,54259.0,0.192164]
[1725701843439,0.08709404,54260.0,54259.0,0.192164]
[1725701844036,0.09631495,54260.0,54259.0,0.192164]
[1725701844240,0.16086132,54260.0,54259.0,0.192164]
[1725701844440,0.15164041,54260.0,54259.0,0.192164]
[1725701845133,0.08709404,54260.0,54259.0,0.192164]
[1725701845334,0.15164002,54260.0,54259.0,0.192164]
[1725701845946,0.15164002,54260.0,54259.0,0.092164]
[1725701847149,0.14256584,54260.0,54259.0,0.092164]
[1725701847543,0.15173315,54260.0,54259.0,0.092164]
[1725701847746,0.14251224,54260.0,54259.0,0.092164]
[1725701847946,0.15173315,54260.0,54259.0,0.092164]
[1725701848645,0.16095406,54260.0,54259.0,0.092164]
[1725701849737,0.10438953,54260.0,54259.0,0.092164]
[1725701850038,0.16095508,54260.0,54259.0,0.092164]
[1725701850447,0.15173417,54260.0,54259.0,0.092164]
[1725701850639,0.09516862,54260.0,54259.0,0.23259979]
[1725701851843,0.08600131,54260.0,54259.0,0.23259979]
[1725701852152,0.09521335,54260.0,54259.0,0.23259979]
[1725701853647,0.08599245,54260.0,54259.0,0.23259979]
[1725701854753,0.07678041,54260.0,54259.0,0.23259979]
[1725701855051,0.07678041,54260.0,54259.0,0.33259847]
[1725701855243,0.08579145,54260.0,54259.0,0.33259847]
[1725701857355,0.07678041,54260.0,54259.0,0.33259847]
[1725701857744,0.09510414,54260.0,54259.0,0.33259847]
[1725701858655,0.08600138,54260.0,54259.0,0.33259847]
[1725701858853,0.09510138,54260.0,54259.0,0.33259847]
[1725701859055,0.09510138,54260.0,54259.0,0.23259847]
[1725701865558,0.09510138,54260.0,54259.0,0.30153643]
[1725701865765,0.15166751,54260.0,54259.0,0.06890416]
[1725701866363,0.15166667,54260.0,54259.0,0.06890416]
[1725701867163,0.1424457,54260.0,54259.0,0.06890416]
[1725701867355,0.15166673,54260.0,54259.0,0.06890416]
[1725701869260,0.14256673,54260.0,54259.0,0.06890416]
[1725701869559,0.15180338,54260.0,54259.0,0.06890416]
[1725701870468,0.14258235,54260.0,54259.0,0.06890416]
[1725701871356,0.15180329,54260.0,54259.0,0.06890416]
[1725701872665,0.095238,54260.0,54259.0,0.20933919]
[1725701875166,0.09523805,54260.0,54259.0,0.20933919]
[1725701875354,0.18740005,54260.0,54259.0,0.20933919]
[1725701875658,0.12285407,54260.0,54259.0,0.06890416]
[1725701878862,0.12285407,54260.0,54259.0,0.07375463]
[1725701878863,1.24812632,54260.0,54259.0,0.07375463]
[1725701879065,1.24812632,54260.0,54256.0,0.07375593]
[1725701879260,0.1,54257.0,54254.0,0.07375593]
[1725701879463,0.10138999,54256.0,54255.0,0.07375593]
[1725701880358,0.09738999,54256.0,54255.0,0.07375593]
[1725701881158,0.092171,54255.0,54254.0,0.07375593]
[1725701881361,0.10039199,54255.0,54254.0,0.07375593]
[1725701881553,0.092172,54254.0,54253.0,0.07375593]
[1725701881758,0.20139299,54254.0,54253.0,0.07375593]
[1725701882266,0.092174,54253.0,54252.0,0.07375593]
[1725701882565,0.10139641,54253.0,54252.0,0.07375593]
[1725701882769,0.10039641,54253.0,54252.0,0.07375593]
[1725701883462,0.10339641,54253.0,54252.0,0.07375593]
[1725701884372,0.10739641,54253.0,54252.0,0.07375593]
[1725701885169,0.092176,54252.0,54251.0,0.07375593]
[1725701885370,0.10139841,54252.0,54251.0,0.07375593]
[1725701886765,0.092178,54251.0,54250.0,0.07375593]
[1725701886966,0.20140041,54251.0,54250.0,0.07375593]
[1725701887167,0.17377985,54251.0,54248.0,0.07375593]
[1725701887364,0.092184,54247.0,54246.0,0.07375593]
[1725701887561,0.16596833,54247.0,54246.0,0.07375593]
[1725701887761,0.16596833,54247.0,54239.0,0.21065992]
[1725701887762,0.13036531,54247.0,54238.0,0.0949]
[1725701888075,0.1,54240.0,54230.0,0.092212]
[1725701888267,0.1,54231.0,54230.0,0.092212]
[1725701888458,0.1,54231.0,54228.0,0.0941]
[1725701888769,0.19221,54232.0,54228.0,0.0941]
[1725701889561,0.00922241,54231.0,54228.0,0.186316]
[1725701889863,0.00922241,54231.0,54228.0,0.188316]
[1725701890069,0.09221,54232.0,54228.0,0.188316]
[1725701890559,0.09221,54232.0,54229.0,0.092214]
[1725701890762,0.08921,54232.0,54229.0,0.092214]
[1725701891077,0.09937726,54232.0,54229.0,0.092214]
[1725701891269,0.00922585,54230.0,54229.0,0.092214]
[1725701891770,0.01845142,54230.0,54229.0,0.092214]
[1725701892459,0.00922585,54230.0,54229.0,0.092214]
[1725701893262,0.00922585,54230.0,54229.0,0.094214]
[1725701894069,0.04141759,54230.0,54229.0,0.094214]
[1725701894258,0.03219208,54230.0,54229.0,0.094214]
[1725701894658,0.00922585,54230.0,54229.0,0.094214]
[1725701895767,0.11160277,54232.0,54229.0,0.089214]
[1725701896163,0.11160277,54232.0,54230.0,0.092213]
[1725701896164,0.10237726,54232.0,54230.0,0.092213]
[1725701896382,0.00922552,54231.0,54230.0,0.080213]
[1725701898472,0.00922551,54231.0,54230.0,0.080213]
[1725701900581,0.01016726,54232.0,54231.0,0.092212]
[1725701900765,0.092205,54235.0,54231.0,0.092212]
[1725701901771,0.00922547,54234.0,54231.0,0.092212]
[1725701901975,0.10143247,54234.0,54231.0,0.092212]
[1725701902579,0.00922547,54233.0,54231.0,0.092212]
[1725701902768,0.00922547,54232.0,54231.0,0.092212]
[1725701902963,0.00922547,54233.0,54231.0,0.092212]
[1725701903168,0.00922547,54232.0,54231.0,0.092212]
[1725701903781,0.00922547,54233.0,54231.0,0.092212]
[1725701904079,0.00922547,54232.0,54231.0,0.092212]
[1725701906675,0.13218974,54232.0,54231.0,0.092212]
[1725701907071,0.12296427,54232.0,54231.0,0.092212]
[1725701907582,0.1,54232.0,54231.0,0.092212]
[1725701907777,0.10922638,54232.0,54231.0,0.092212]
[1725701907981,0.20143638,54232.0,54231.0,0.092212]
[1725701910173,0.19221,54232.0,54231.0,0.092212]
[1725701911274,0.20143649,54232.0,54231.0,0.092212]
[1725701912281,0.19221,54232.0,54231.0,0.092212]
[1725701912777,0.2014365,54232.0,54231.0,0.092212]
[1725701913183,0.210663,54232.0,54231.0,0.092212]
[1725701913384,0.092212,54231.0,54229.0,0.092214]
[1725701914084,0.092212,54231.0,54229.0,0.14743335]
[1725701914282,0.092212,54231.0,54229.0,0.092214]
[1725701914486,0.1,54230.0,54229.0,0.092214]
[1725701914986,0.1,54230.0,54229.0,0.14743335]
[1725701915181,0.1092265,54230.0,54229.0,0.092214]
[1725701915491,0.0092265,54230.0,54229.0,0.092214]
[1725701916178,0.0092265,54230.0,54229.0,0.16596993]
[1725701916778,0.0092265,54230.0,54229.0,0.092214]
[1725701917175,0.0092265,54230.0,54229.0,0.23272399]
[1725701917781,0.0092265,54232.0,54231.0,0.092212]
[1725701917988,0.02859262,54232.0,54231.0,0.42488419]
[1725701918185,0.0184521,54232.0,54231.0,0.42488419]
[1725701918386,0.0184521,54232.0,54231.0,0.33272199]
[1725701920293,0.0184521,54232.0,54231.0,0.42488078]
[1725701921090,0.02866676,54232.0,54231.0,0.33272199]
[1725701922197,0.02866676,54232.0,54231.0,0.42488109]
[1725701922386,0.02866676,54232.0,54231.0,0.192212]
[1725701922691,0.05163071,54232.0,54231.0,0.42487567]
[1725701923089,0.04240511,54232.0,54231.0,0.42487567]
[1725701923489,0.03317861,54232.0,54231.0,0.42487567]
[1725701923891,0.04240421,54232.0,54231.0,0.42487567]
[1725701924095,0.01944026,54232.0,54231.0,0.42487567]
[1725701924996,0.01944026,54232.0,54231.0,0.33271657]
[1725701925800,0.0092256,54232.0,54231.0,0.33271657]
[1725701925999,0.02296532,54232.0,54231.0,0.33271657]
[1725701926302,0.092202,54237.0,54231.0,0.33271657]
[1725701926511,0.10255386,54237.0,54235.0,0.1]
[1725701926806,0.092192,54243.0,54242.0,0.092193]
[1725701927303,0.1014171,54243.0,54242.0,0.092193]
[1725701929105,0.1014171,54243.0,54242.0,0.14744411]
[1725701929407,0.11148061,54243.0,54242.0,0.14744411]
[1725701929607,0.01928861,54243.0,54242.0,0.14744411]
[1725701929807,0.01928861,54243.0,54242.0,0.16591299]
[1725701930111,0.01928861,54243.0,54242.0,0.092193]
[1725701930308,0.00923665,54260.0,54242.0,1.47789574]
[1725701930309,0.092166,54258.0,54242.0,1.47789574]
[1725701930503,0.16595193,54257.0,54255.0,0.092169]
[1725701930811,0.092167,54257.0,54256.0,0.0926]
[1725701932207,0.192167,54257.0,54256.0,0.0926]
[1725701932915,0.24874035,54257.0,54256.0,0.0926]
[1725701934123,0.24874035,54257.0,54251.0,0.092177]
[1725701934124,0.09217,54256.0,54251.0,0.092177]
[1725701934323,0.1,54253.0,54252.0,0.092176]
[1725701934628,0.15657335,54253.0,54252.0,0.092176]
[1725701935510,0.1,54253.0,54252.0,0.092176]
[1725701938021,0.11037964,54253.0,54252.0,0.092176]
[1725701938427,0.11960214,54253.0,54252.0,0.092176]
[1725701940241,0.17617909,54253.0,54252.0,0.092176]
[1725701940925,0.11960214,54253.0,54252.0,0.092176]
[1725701941227,0.21177614,54253.0,54252.0,0.092176]
[1725701942031,0.21177667,54253.0,54252.0,0.092176]
[1725701943030,0.20255364,54253.0,54252.0,0.092176]
[1725701943433,0.21177634,54253.0,54252.0,0.092176]
[1725701944329,0.22099908,54253.0,54252.0,0.092176]
[1725701944935,0.21177638,54253.0,54252.0,0.092176]
[1725701945627,0.20255364,54253.0,54252.0,0.092176]
[1725701946230,0.11037964,54253.0,54252.0,0.092176]
[1725701947334,0.14257535,54253.0,54252.0,0.092176]
[1725701947525,0.15179774,54253.0,54252.0,0.092176]
[1725701949521,0.14257535,54253.0,54252.0,0.092176]
[1725701950732,0.15179778,54253.0,54252.0,0.092176]
[1725701951529,0.24397178,54253.0,54252.0,0.092176]
[1725701951725,0.26694279,54253.0,54252.0,0.092176]
[1725701952124,0.24397178,54253.0,54252.0,0.092176]
[1725701952325,0.23474935,54253.0,54252.0,0.092176]
[1725701953337,0.21177616,54253.0,54252.0,0.14740516]
[1725701953536,0.22099877,54253.0,54252.0,0.14740516]
[1725701953732,0.22099877,54253.0,54252.0,0.092176]
[1725701953944,0.23022138,54253.0,54252.0,0.092176]
[1725701954132,0.22099886,54253.0,54252.0,0.092176]
[1725701955338,0.24396972,54253.0,54252.0,0.092176]
[1725701955535,0.02882486,54253.0,54252.0,0.092176]
[1725701956039,0.01960225,54253.0,54252.0,0.092176]
[1725701956432,0.02882464,54253.0,54252.0,0.092176]
[1725701959146,0.08539828,54253.0,54252.0,0.092176]
[1725701960434,0.07617589,54253.0,54252.0,0.092176]
[1725701960634,0.08539828,54253.0,54252.0,0.092176]
[1725701962542,0.07617589,54253.0,54252.0,0.092176]
[1725701962932,0.02882464,54253.0,54252.0,0.092176]
[1725701963644,0.01960203,54253.0,54252.0,0.092176]
[1725701964946,0.11960203,54253.0,54252.0,0.092176]
[1725701965846,0.11037964,54253.0,54252.0,0.092176]
[1725701966655,0.11960204,54253.0,54252.0,0.092176]
[1725701966851,0.12882444,54253.0,54252.0,0.092176]
[1725701970748,0.12882444,54253.0,54251.0,0.09215075]
[1725701970941,0.092181,54249.0,54248.0,0.07375323]
[1725701971250,0.092181,54249.0,54234.0,0.092205]
[1725701971251,0.092184,54247.0,54246.0,0.07375398]
[1725701971445,0.1014064,54247.0,54246.0,0.092186]
[1725701971643,0.1014064,54247.0,54246.0,0.16593998]
[1725701972248,0.092184,54247.0,54246.0,0.16593998]
[1725701972544,0.1014074,54247.0,54246.0,0.092186]
[1725701973054,0.092184,54247.0,54246.0,0.092186]
[1725701973347,0.092184,54247.0,54246.0,0.16593998]
[1725701973543,0.10140749,54247.0,54246.0,0.16593998]
[1725701973736,0.10140749,54247.0,54246.0,0.1659007]
[1725701974137,0.10140749,54247.0,54246.0,0.092186]
[1725701974550,0.10140749,54247.0,54246.0,0.1658967]
[1725701975241,0.11192605,54247.0,54246.0,0.1658967]
[1725701975754,0.10270256,54247.0,54246.0,0.1658967]
[1725701975952,0.11192582,54247.0,54246.0,0.1658967]
[1725701976544,0.11192582,54247.0,54246.0,0.092186]
[1725701976945,0.11192582,54247.0,54246.0,0.1658967]
[1725701977554,0.11192582,54247.0,54246.0,0.092186]
[1725701979443,0.10270256,54247.0,54246.0,0.092186]
[1725701979955,0.111926,54247.0,54246.0,0.092186]
[1725701980851,0.23306909,54247.0,54246.0,0.092186]
[1725701982155,0.23306908,54247.0,54246.0,0.092186]
[1725701983350,0.22384565,54247.0,54246.0,0.092186]
[1725701983942,0.2330691,54247.0,54246.0,0.092186]
[1725701984454,0.37846135,54247.0,54246.0,0.092186]
[1725701984768,0.43504091,54247.0,54246.0,0.092186]
[1725701985755,0.2330691,54247.0,54246.0,0.092186]
[1725701986054,0.37846135,54247.0,54246.0,0.092186]
[1725701986259,0.08430554,54247.0,54245.0,0.1724107]
[1725701986449,0.092189,54244.0,54243.0,0.05890451]
[1725701986758,0.092198,54239.0,54235.0,0.05523969]
[1725701986954,0.092205,54235.0,54234.0,0.05523969]
[1725701987157,0.15677402,54235.0,54232.0,0.092209]
[1725701987454,0.10922345,54238.0,54232.0,0.092209]
[1725701987455,0.10143045,54234.0,54232.0,0.092209]
[1725701987654,0.00922345,54233.0,54232.0,0.092209]
[1725701987851,0.00922345,54233.0,54230.0,0.0976]
[1725701988153,0.10143445,54232.0,54230.0,0.0976]
[1725701988562,0.00922345,54231.0,54230.0,0.0976]
[1725701995359,0.0192748,54231.0,54230.0,0.0976]
[1725701998346,0.01005135,54231.0,54230.0,0.0976]
[1725701998546,0.092211,54232.0,54230.0,0.0976]
[1725701999251,0.00922562,54231.0,54230.0,0.0976]
[1725702003654,0.00922562,54231.0,54230.0,0.189813]
[1725702003849,0.10143762,54231.0,54230.0,0.189813]
[1725702007069,0.10143792,54231.0,54230.0,0.189813]
[1725702008264,0.092212,54231.0,54230.0,0.189813]
[1725702008468,0.10143798,54231.0,54230.0,0.189813]
[1725702008963,0.11066398,54231.0,54230.0,0.189813]
[1725702010769,0.11066397,54231.0,54230.0,0.189813]
[1725702011362,0.10143798,54231.0,54230.0,0.189813]
[1725702011561,0.11066397,54231.0,54230.0,0.189813]
[1725702013371,0.10143799,54231.0,54230.0,0.189813]
[1725702016065,0.10143799,54231.0,54230.0,0.42247536]
[1725702016656,0.10143799,54231.0,54230.0,0.33032461]
[1725702017560,0.00922599,54231.0,54230.0,0.33032461]
[1725702017761,0.092169,54257.0,54230.0,1.49131161]
[1725702017967,0.1,54253.0,54244.0,0.1]
[1725702018271,0.1,54250.0,54244.0,0.1]
[1725702018869,0.1,54256.0,54248.0,0.092182]
[1725702019068,0.092177,54252.0,54249.0,0.1]
[1725702019275,0.092178,54251.0,54249.0,0.1]
[1725702019568,0.092179,54250.0,54249.0,0.192181]
[1725702019768,0.092174,54254.0,54250.0,0.092179]
[1725702019974,0.1,54257.0,54252.0,0.15522241]
[1725702020179,0.10943807,54257.0,54253.0,0.05522241]
[1725702020360,0.092174,54254.0,54252.0,0.15522241]
[1725702020565,0.05842309,54263.0,54256.0,0.092169]
[1725702020869,0.1,54260.0,54256.0,0.092169]
[1725702021774,0.092167,54257.0,54256.0,0.092169]
[1725702022477,0.092167,54257.0,54252.0,0.24735857]
[1725702022773,0.092167,54257.0,54252.0,0.15518257]
[1725702023160,0.20197181,54253.0,54252.0,0.192176]
[1725702023365,0.25854148,54253.0,54252.0,0.192176]
[1725702024378,0.05656967,54253.0,54252.0,0.192176]
[1725702025071,0.07955059,54253.0,54252.0,0.192176]
[1725702025273,0.05656967,54253.0,54252.0,0.192176]
[1725702025574,0.06587316,54253.0,54252.0,0.192176]
[1725702025776,0.0750949,54253.0,54252.0,0.192176]
[1725702029275,0.0855107,54253.0,54252.0,0.192176]
[1725702030869,0.07620721,54253.0,54252.0,0.192176]
[1725702031180,0.01963754,54253.0,54252.0,0.192176]
[1725702031374,0.02895594,54253.0,54252.0,0.192176]
[1725702031570,0.00922174,54253.0,54252.0,0.192176]
[1725702032076,0.01821646,54253.0,54252.0,0.192176]
[1725702032983,0.00899472,54253.0,54252.0,0.192176]
[1725702033180,0.10238097,54255.0,54253.0,0.092173]
[1725702033479,0.10238097,54255.0,54252.0,0.1]
[1725702033781,0.11175839,54255.0,54253.0,0.0931]
[1725702034385,0.10238097,54255.0,54253.0,0.0931]
[1725702034893,0.10238097,54255.0,54254.0,0.092172]
[1725702035383,0.11160274,54255.0,54254.0,0.092172]
[1725702035588,0.01943174,54255.0,54254.0,0.192172]
[1725702035790,0.00922177,54255.0,54254.0,0.192172]
[1725702036084,0.00922177,54255.0,54254.0,0.24716138]
[1725702036284,0.00922177,54255.0,54254.0,0.192172]
[1725702036481,0.092166,54258.0,54257.0,0.092167]
[1725702036681,0.092166,54258.0,54257.0,0.192167]
[1725702037086,0.02871901,54258.0,54253.0,0.0931]
[1725702037381,0.192172,54255.0,54254.0,0.092171]
[1725702038281,0.10139292,54255.0,54254.0,0.092171]
[1725702041078,0.00922092,54255.0,54254.0,0.092171]
[1725702041281,0.1,54257.0,54255.0,0.09217]
[1725702041586,0.0092219,54256.0,54255.0,0.09217]
[1725702042186,0.0092219,54256.0,54253.0,0.0931]
[1725702042380,0.092172,54254.0,54253.0,0.185274]
[1725702042582,0.1013939,54254.0,54253.0,0.185274]
[1725702043086,0.0092219,54254.0,54253.0,0.185274]
[1725702043492,0.1092219,54254.0,54253.0,0.185274]
[1725702043680,0.1,54254.0,54253.0,0.185274]
[1725702043876,0.1092219,54254.0,54253.0,0.185274]
[1725702045688,0.1,54254.0,54253.0,0.185274]
[1725702045886,0.10922199,54254.0,54253.0,0.185274]
[1725702046082,0.16579316,54254.0,54253.0,0.185274]
[1725702046689,0.18877984,54254.0,54253.0,0.185274]
[1725702047181,0.06579531,54254.0,54253.0,0.185274]
[1725702050184,0.05657332,54254.0,54253.0,0.185274]
[1725702050882,0.06579517,54254.0,54253.0,0.185274]
[1725702051594,0.0657926,54254.0,54253.0,0.185274]
[1725702052195,0.08877576,54254.0,54253.0,0.185274]
[1725702052391,0.23417682,54254.0,54253.0,0.185274]
[1725702052592,0.29074757,54254.0,54253.0,0.185274]
[1725702053193,0.00922185,54254.0,54253.0,0.32572392]
[1725702056587,0.00922185,54254.0,54253.0,0.32572417]
[1725702058198,0.00922185,54254.0,54253.0,0.41789599]
[1725702059104,0.10139385,54254.0,54253.0,0.092174]
[1725702062904,0.092172,54254.0,54253.0,0.092174]
[1725702063203,0.192168,54257.0,54255.0,0.09217]
[1725702063903,0.192168,54257.0,54256.0,0.092169]
[1725702064295,0.26594568,54257.0,54256.0,0.092169]
[1725702068111,0.26594568,54257.0,54256.0,0.08295211]
[1725702068307,0.092173,54254.0,54248.0,0.092183]
[1725702068603,0.092173,54254.0,54252.0,0.092174]
[1725702068604,0.23035017,54253.0,54252.0,0.092174]
[1725702068800,0.1657947,54253.0,54252.0,0.092174]
[1725702068996,0.23035007,54253.0,54252.0,0.092174]
[1725702070511,0.22112786,54253.0,54252.0,0.092174]
[1725702070697,0.23035008,54253.0,54252.0,0.092174]
[1725702071314,0.2395723,54253.0,54252.0,0.092174]
[1725702072908,0.24874238,54253.0,54252.0,0.092174]
[1725702073212,0.24874238,54253.0,54245.0,0.1]
[1725702073213,0.092184,54247.0,54245.0,0.092187]
[1725702073410,0.21332088,54247.0,54244.0,0.0499]
[1725702073599,0.2225431,54247.0,54244.0,0.0499]
[1725702073804,0.3225431,54247.0,54244.0,0.0499]
[1725702074005,0.3225431,54247.0,54246.0,0.186686]
[1725702074205,0.3225431,54247.0,54246.0,0.0945]
[1725702075010,0.26597061,54247.0,54246.0,0.0945]
[1725702075212,0.32255046,54247.0,54246.0,0.0945]
[1725702076310,0.26597061,54247.0,54246.0,0.16823482]
[1725702076504,0.092186,54246.0,54245.0,0.07373482]
[1725702076807,0.0922,54238.0,54237.0,0.07368421]
[1725702077112,0.1737989,54238.0,54235.0,0.05526836]
[1725702077313,0.092205,54235.0,54234.0,0.05526836]
[1725702077609,0.092206,54234.0,54233.0,0.05526836]
[1725702078214,0.092206,54234.0,54230.0,0.092212]
[1725702078215,0.1014318,54234.0,54232.0,0.05526836]
[1725702078700,0.092206,54234.0,54232.0,0.05526836]
[1725702079217,0.10143177,54234.0,54231.0,0.05526836]
[1725702079509,0.1,54232.0,54231.0,0.05526836]
[1725702080208,0.1,54232.0,54230.0,0.05526836]
[1725702080414,0.00922577,54231.0,54230.0,0.05526836]